[Event "*** Titled Tuesday Blitz"]
[Site "Chess.com"]
[Date "2021.03.02"]
[Round "9"]
[White "Aslanov_Umid"]
[Black "Make_it_shine060"]
[Result "1-0"]
[WhiteElo "2400"]
[BlackElo "2253"]
[TimeControl "180+1"]
[EndTime "11:48:46 PST"]
[Termination "Aslanov_Umid won by resignation"]

1. e4 {[%clk 0:03:00.9]} 1... c5 {[%clk 0:01:02.6]} 2. Nf3 {[%clk 0:02:59]} 2...
d6 {[%clk 0:01:02.7]} 3. d4 {[%clk 0:02:59.4]} 3... cxd4 {[%clk 0:01:03.6]} 4.
Nxd4 {[%clk 0:03:00.3]} 4... Nf6 {[%clk 0:01:03.7]} 5. Nc3 {[%clk 0:03:00]} 5...
Nc6 {[%clk 0:01:04.2]} 6. Bc4 {[%clk 0:02:58.4]} 6... e6 {[%clk 0:01:03]} 7. O-O
{[%clk 0:02:56.2]} 7... Be7 {[%clk 0:01:02.1]} 8. Be3 {[%clk 0:02:55.1]} 8...
O-O {[%clk 0:01:02.1]} 9. f3 {[%clk 0:02:53.9]} 9... a6 {[%clk 0:01:02]} 10.
Nce2 {[%clk 0:02:51.9]} 10... Bd7 {[%clk 0:00:59.6]} 11. Bb3 {[%clk 0:02:51.3]}
11... b5 {[%clk 0:00:58.5]} 12. Qe1 {[%clk 0:02:51.1]} 12... Rc8 {[%clk
0:00:54.4]} 13. c3 {[%clk 0:02:48.5]} 13... Ne5 {[%clk 0:00:51.6]} 14. h3 {[%clk
0:02:45.4]} 14... a5 {[%clk 0:00:48.9]} 15. f4 {[%clk 0:02:44.9]} 15... Nc4
{[%clk 0:00:45.9]} 16. Bxc4 {[%clk 0:02:45.2]} 16... bxc4 {[%clk 0:00:46]} 17.
Ng3 {[%clk 0:02:41.1]} 17... Qc7 {[%clk 0:00:38.9]} 18. Bd2 {[%clk 0:02:38]}
18... Rb8 {[%clk 0:00:35.5]} 19. Rb1 {[%clk 0:02:37]} 19... Bc6 {[%clk
0:00:33.3]} 20. e5 {[%clk 0:02:35.1]} 20... Nd5 {[%clk 0:00:30.5]} 21. Nh5
{[%clk 0:02:26.1]} 21... g6 {[%clk 0:00:26.2]} 22. Ng3 {[%clk 0:02:22.9]} 22...
Bh4 {[%clk 0:00:24.9]} 23. Nf3 {[%clk 0:02:19.5]} 23... Be7 {[%clk 0:00:24.1]}
24. h4 {[%clk 0:02:09.2]} 24... h5 {[%clk 0:00:22.4]} 25. Kh2 {[%clk 0:02:03.5]}
25... dxe5 {[%clk 0:00:20.2]} 26. Nxe5 {[%clk 0:02:04.4]} 26... Bd6 {[%clk
0:00:19.4]} 27. Qe2 {[%clk 0:02:03.6]} 27... Nf6 {[%clk 0:00:19]} 28. Nxc4
{[%clk 0:01:46.2]} 28... Ng4+ {[%clk 0:00:18]} 29. Kh1 {[%clk 0:01:45.7]} 29...
Bc5 {[%clk 0:00:17.3]} 30. Ne5 {[%clk 0:01:41.6]} 30... Qe7 {[%clk 0:00:15.3]}
31. Nxg4 {[%clk 0:01:34.6]} 31... Qxh4+ {[%clk 0:00:13.8]} 32. Nh2 {[%clk
0:01:34.1]} 32... Qxg3 {[%clk 0:00:14.2]} 33. Be1 {[%clk 0:01:26.2]} 33... Qe3
{[%clk 0:00:08.7]} 34. Qxe3 {[%clk 0:01:19.5]} 34... Bxe3 {[%clk 0:00:09.6]} 35.
Bf2 {[%clk 0:01:19.5]} 35... Bxf4 {[%clk 0:00:09.2]} 36. Nf3 {[%clk 0:01:16]}
36... Rbd8 {[%clk 0:00:07.9]} 37. Bb6 {[%clk 0:01:11.3]} 37... Rd3 {[%clk
0:00:07]} 38. Rbd1 {[%clk 0:01:04.5]} 38... Rxd1 {[%clk 0:00:06.8]} 39. Rxd1
{[%clk 0:01:05.4]} 39... g5 {[%clk 0:00:06.8]} 40. Bc5 {[%clk 0:00:53.1]} 40...
Re8 {[%clk 0:00:06]} 41. b4 {[%clk 0:00:37.2]} 41... g4 {[%clk 0:00:05.7]} 42.
Nd4 {[%clk 0:00:32.1]} 42... axb4 {[%clk 0:00:06]} 43. cxb4 {[%clk 0:00:33]}
43... Be4 {[%clk 0:00:05.5]} 44. b5 {[%clk 0:00:30.4]} 44... h4 {[%clk
0:00:05.4]} 45. Ne2 {[%clk 0:00:28.2]} 45... Bc7 {[%clk 0:00:05.1]} 46. b6
{[%clk 0:00:27.9]} 46... Bb8 {[%clk 0:00:05.1]} 47. Nc3 {[%clk 0:00:23.2]} 47...
Bb7 {[%clk 0:00:04.2]} 48. Rd7 {[%clk 0:00:19.1]} 48... Bc6 {[%clk 0:00:04.1]}
49. Rd4 {[%clk 0:00:18.7]} 49... f5 {[%clk 0:00:03.5]} 50. Bd6 {[%clk
0:00:15.4]} 50... h3 {[%clk 0:00:04.4]} 51. Bxb8 {[%clk 0:00:14.4]} 51... hxg2+
{[%clk 0:00:04.4]} 52. Kg1 {[%clk 0:00:14.6]} 52... Rxb8 {[%clk 0:00:05.3]} 53.
Rb4 {[%clk 0:00:13.6]} 53... Rd8 {[%clk 0:00:05]} 54. a4 {[%clk 0:00:13.1]}
54... Rd2 {[%clk 0:00:05]} 55. b7 {[%clk 0:00:13]} 55... Rf2 {[%clk 0:00:02.6]}
56. b8=Q+ {[%clk 0:00:10.4]} 56... Kg7 {[%clk 0:00:02.7]} 57. Qe5+ {[%clk
0:00:10.7]} 57... Kh7 {[%clk 0:00:02.5]} 58. Rb1 {[%clk 0:00:11.1]} 58... Rf1+
{[%clk 0:00:01.2]} 59. Rxf1 {[%clk 0:00:10.9]} 59... gxf1=Q+ {[%clk 0:00:02.1]}
60. Kxf1 {[%clk 0:00:11.2]} 1-0

[Event "*** Titled Tuesday Blitz"]
[Site "Chess.com"]
[Date "2021.03.02"]
[Round "9"]
[White "googlegoom"]
[Black "frankshar"]
[Result "1/2-1/2"]
[WhiteElo "2464"]
[BlackElo "2349"]
[TimeControl "180+1"]
[EndTime "11:48:50 PST"]
[Termination "Game drawn by repetition"]

1. Nf3 {[%clk 0:03:00.9]} 1... Nf6 {[%clk 0:02:59.3]} 2. b3 {[%clk 0:03:01]}
2... e6 {[%clk 0:03:00.2]} 3. Bb2 {[%clk 0:03:00.4]} 3... d5 {[%clk 0:03:00.5]}
4. e3 {[%clk 0:03:00.1]} 4... Be7 {[%clk 0:03:00.5]} 5. Be2 {[%clk 0:03:00.6]}
5... O-O {[%clk 0:02:59.8]} 6. O-O {[%clk 0:03:01.1]} 6... b6 {[%clk 0:02:59.3]}
7. d4 {[%clk 0:03:01.6]} 7... c5 {[%clk 0:02:58]} 8. Nbd2 {[%clk 0:03:01.8]}
8... Bb7 {[%clk 0:02:57.7]} 9. c4 {[%clk 0:03:01.3]} 9... cxd4 {[%clk
0:02:56.3]} 10. Nxd4 {[%clk 0:03:00]} 10... Nc6 {[%clk 0:02:56.2]} 11. Rc1
{[%clk 0:03:00.5]} 11... Rc8 {[%clk 0:02:55.4]} 12. h3 {[%clk 0:02:57.3]} 12...
Qd7 {[%clk 0:02:51.3]} 13. Nxc6 {[%clk 0:02:52.4]} 13... Bxc6 {[%clk 0:02:51]}
14. Rc2 {[%clk 0:02:52.4]} 14... Rfd8 {[%clk 0:02:48]} 15. Qa1 {[%clk
0:02:51.6]} 15... Qb7 {[%clk 0:02:45.6]} 16. Bf3 {[%clk 0:02:43.4]} 16... dxc4
{[%clk 0:02:39.2]} 17. Rxc4 {[%clk 0:02:38.7]} 17... Bxf3 {[%clk 0:02:37.1]} 18.
Rxc8 {[%clk 0:02:37]} 18... Rxc8 {[%clk 0:02:26.8]} 19. Nxf3 {[%clk 0:02:37.6]}
19... Ne8 {[%clk 0:02:22]} 20. Rc1 {[%clk 0:02:34.7]} 20... Bf6 {[%clk 0:02:20]}
21. Bd4 {[%clk 0:02:18.3]} 21... Bxd4 {[%clk 0:02:17.6]} 22. Nxd4 {[%clk
0:02:17.5]} 22... Nd6 {[%clk 0:02:13.8]} 23. Qb2 {[%clk 0:02:11.4]} 23... h6
{[%clk 0:02:06.6]} 24. Rxc8+ {[%clk 0:02:10.5]} 24... Qxc8 {[%clk 0:02:06.4]}
25. Qa3 {[%clk 0:02:11.1]} 25... Qc7 {[%clk 0:02:02.6]} 26. Qa4 {[%clk
0:02:09.4]} 26... g6 {[%clk 0:01:59.8]} 27. g3 {[%clk 0:02:07.7]} 27... h5
{[%clk 0:01:58.8]} 28. h4 {[%clk 0:02:07.8]} 28... Nf5 {[%clk 0:01:44.2]} 29.
Nc6 {[%clk 0:02:06]} 29... a5 {[%clk 0:01:33.4]} 30. Qe4 {[%clk 0:02:03.5]}
30... Qd6 {[%clk 0:01:26]} 31. Qc4 {[%clk 0:01:41.8]} 31... Qd1+ {[%clk
0:01:19.7]} 32. Kg2 {[%clk 0:01:41.7]} 32... Qd2 {[%clk 0:01:18.3]} 33. Qf4
{[%clk 0:01:30.4]} 33... Qxa2 {[%clk 0:01:01.1]} 34. Qb8+ {[%clk 0:01:29.6]}
34... Kg7 {[%clk 0:01:00.6]} 35. Qxb6 {[%clk 0:01:30.2]} 35... a4 {[%clk
0:00:56.2]} 36. bxa4 {[%clk 0:01:18.9]} 36... Qxa4 {[%clk 0:00:50.9]} 37. Nd8
{[%clk 0:01:15.9]} 37... Qe4+ {[%clk 0:00:49.7]} 38. Kg1 {[%clk 0:01:15.8]}
38... Qd5 {[%clk 0:00:30.2]} 39. Qc7 {[%clk 0:01:12.2]} 39... e5 {[%clk
0:00:30.1]} 40. Nc6 {[%clk 0:01:06.3]} 40... e4 {[%clk 0:00:27.9]} 41. Qe5+
{[%clk 0:00:59]} 41... Qxe5 {[%clk 0:00:28.1]} 42. Nxe5 {[%clk 0:00:59.9]} 42...
Kf6 {[%clk 0:00:28.7]} 43. Nc4 {[%clk 0:00:58.1]} 43... Ke6 {[%clk 0:00:27.9]}
44. Kf1 {[%clk 0:00:55.9]} 44... Nd6 {[%clk 0:00:25.7]} 45. Nb6 {[%clk
0:00:53.8]} 45... f5 {[%clk 0:00:24.7]} 46. Ke2 {[%clk 0:00:54.2]} 46... Nf7
{[%clk 0:00:22.9]} 47. Kd2 {[%clk 0:00:54.4]} 47... Ne5 {[%clk 0:00:23]} 48. Na4
{[%clk 0:00:50.8]} 48... Ng4 {[%clk 0:00:20.6]} 49. Ke2 {[%clk 0:00:49.9]} 49...
Ne5 {[%clk 0:00:21.2]} 50. Nc5+ {[%clk 0:00:49.3]} 50... Kd5 {[%clk 0:00:21.6]}
51. Nb3 {[%clk 0:00:47.4]} 51... Ke6 {[%clk 0:00:20.8]} 52. Nd4+ {[%clk
0:00:47.4]} 52... Kf6 {[%clk 0:00:21.4]} 53. Nc2 {[%clk 0:00:46.6]} 53... Ke6
{[%clk 0:00:20.8]} 54. Ne1 {[%clk 0:00:47.2]} 54... Kf6 {[%clk 0:00:21]} 55. Ng2
{[%clk 0:00:47.8]} 55... Ke6 {[%clk 0:00:20.9]} 56. Nf4+ {[%clk 0:00:48.5]}
56... Kf6 {[%clk 0:00:21.4]} 57. Kd2 {[%clk 0:00:48.6]} 57... Ng4 {[%clk
0:00:20.7]} 58. Nh3 {[%clk 0:00:47.6]} 58... Ne5 {[%clk 0:00:20.2]} 59. Kc3
{[%clk 0:00:47.7]} 59... Ke6 {[%clk 0:00:19.6]} 60. Kd2 {[%clk 0:00:46.7]} 60...
Kf6 {[%clk 0:00:19.5]} 61. Ke2 {[%clk 0:00:47.3]} 61... Ng4 {[%clk 0:00:18.7]}
62. Ng5 {[%clk 0:00:45.2]} 62... Ne5 {[%clk 0:00:18.4]} 63. Nh7+ {[%clk
0:00:43.7]} 63... Kg7 {[%clk 0:00:18.1]} 64. Ng5 {[%clk 0:00:44.6]} 64... Kf6
{[%clk 0:00:18.6]} 65. Nh3 {[%clk 0:00:45]} 65... Ng4 {[%clk 0:00:18.7]} 66. Nf4
{[%clk 0:00:45.9]} 66... Ne5 {[%clk 0:00:18.5]} 67. Nd5+ {[%clk 0:00:45.4]}
67... Ke6 {[%clk 0:00:17.9]} 68. Nc3 {[%clk 0:00:45.7]} 68... Kf6 {[%clk
0:00:18]} 69. Nd1 {[%clk 0:00:44.3]} 69... Ke6 {[%clk 0:00:18.3]} 70. Kd2 {[%clk
0:00:44.7]} 70... Kd5 {[%clk 0:00:18.2]} 71. Nc3+ {[%clk 0:00:43.6]} 71... Ke6
{[%clk 0:00:17.9]} 72. Ne2 {[%clk 0:00:42.4]} 72... Ng4 {[%clk 0:00:18.1]} 73.
Ke1 {[%clk 0:00:42]} 73... Kf6 {[%clk 0:00:17.6]} 74. Nf4 {[%clk 0:00:41.3]}
74... Ne5 {[%clk 0:00:17.8]} 75. Ke2 {[%clk 0:00:40.6]} 75... Ng4 {[%clk
0:00:17.3]} 76. Nd5+ {[%clk 0:00:38.4]} 76... Ke6 {[%clk 0:00:16.5]} 77. Nc3
{[%clk 0:00:38]} 77... Kf6 {[%clk 0:00:16.9]} 78. f3 {[%clk 0:00:38.4]} 78...
exf3+ {[%clk 0:00:16.8]} 79. Kxf3 {[%clk 0:00:38.9]} 79... Ke5 {[%clk 0:00:17]}
80. Ne2 {[%clk 0:00:37]} 80... Kf6 {[%clk 0:00:16.3]} 81. Nf4 {[%clk 0:00:36.8]}
81... Ne5+ {[%clk 0:00:16.2]} 82. Ke2 {[%clk 0:00:37.4]} 82... Ng4 {[%clk
0:00:15.2]} 83. Nd5+ {[%clk 0:00:35.9]} 83... Ke5 {[%clk 0:00:14.9]} 84. Nf4
{[%clk 0:00:35.3]} 84... Kf6 {[%clk 0:00:15.2]} 85. Ng2 {[%clk 0:00:33.2]} 85...
Ke5 {[%clk 0:00:14.8]} 86. Nf4 {[%clk 0:00:31.9]} 86... Kf6 {[%clk 0:00:15.1]}
1/2-1/2

[Event "*** Titled Tuesday Blitz"]
[Site "Chess.com"]
[Date "2021.03.02"]
[Round "9"]
[White "anon219"]
[Black "BogdanDeac"]
[Result "1-0"]
[WhiteElo "2866"]
[BlackElo "2971"]
[TimeControl "180+1"]
[EndTime "11:48:58 PST"]
[Termination "anon219 won on time"]

1. e4 {[%clk 0:03:00.9]} 1... e5 {[%clk 0:00:24.8]} 2. Nf3 {[%clk 0:02:57.1]}
2... Nc6 {[%clk 0:00:24.5]} 3. Bc4 {[%clk 0:02:55.6]} 3... d6 {[%clk 0:00:24.4]}
4. c3 {[%clk 0:02:46.1]} 4... f5 {[%clk 0:00:24]} 5. d3 {[%clk 0:02:43.6]} 5...
Qf6 {[%clk 0:00:23.4]} 6. Na3 {[%clk 0:02:40.4]} 6... a6 {[%clk 0:00:20.2]} 7.
b4 {[%clk 0:02:33.7]} 7... fxe4 {[%clk 0:00:18.7]} 8. dxe4 {[%clk 0:02:31.5]}
8... Bg4 {[%clk 0:00:18.4]} 9. b5 {[%clk 0:02:26.3]} 9... Bxf3 {[%clk
0:00:18.3]} 10. gxf3 {[%clk 0:02:24.5]} 10... axb5 {[%clk 0:00:15.5]} 11. Nxb5
{[%clk 0:02:24.6]} 11... Kd8 {[%clk 0:00:15.5]} 12. Be3 {[%clk 0:02:22.2]} 12...
Nge7 {[%clk 0:00:13.7]} 13. h4 {[%clk 0:02:15.5]} 13... h6 {[%clk 0:00:13.5]}
14. h5 {[%clk 0:02:12.9]} 14... g5 {[%clk 0:00:13]} 15. hxg6 {[%clk 0:02:09.2]}
15... Nxg6 {[%clk 0:00:12.6]} 16. Rh5 {[%clk 0:02:02.7]} 16... Nf4 {[%clk
0:00:11.2]} 17. Rf5 {[%clk 0:01:58.5]} 17... Ng2+ {[%clk 0:00:10.8]} 18. Ke2
{[%clk 0:01:57.7]} 18... Nxe3 {[%clk 0:00:10.8]} 19. Kxe3 {[%clk 0:01:55]} 19...
Qh4 {[%clk 0:00:08.4]} 20. Qd5 {[%clk 0:01:51.2]} 20... Be7 {[%clk 0:00:07.7]}
21. Rd1 {[%clk 0:01:39.7]} 21... Rf8 {[%clk 0:00:06.6]} 22. Rxf8+ {[%clk
0:01:11.7]} 22... Bxf8 {[%clk 0:00:07.5]} 23. Rg1 {[%clk 0:01:11.9]} 23... Qf6
{[%clk 0:00:06.6]} 24. Rg8 {[%clk 0:01:09.1]} 24... Rb8 {[%clk 0:00:06]} 25. Qe6
{[%clk 0:00:44.9]} 25... Qxe6 {[%clk 0:00:06]} 26. Bxe6 {[%clk 0:00:45.8]} 26...
Ke7 {[%clk 0:00:05.9]} 27. Bd5 {[%clk 0:00:46.2]} 27... h5 {[%clk 0:00:05.9]}
28. Nxc7 {[%clk 0:00:46.2]} 28... Bh6+ {[%clk 0:00:05.6]} 29. Ke2 {[%clk
0:00:44.5]} 29... Rxg8 {[%clk 0:00:06.1]} 30. Bxg8 {[%clk 0:00:45.4]} 30... h4
{[%clk 0:00:06.6]} 31. Nd5+ {[%clk 0:00:44.6]} 31... Kd7 {[%clk 0:00:05.2]} 32.
Bh7 {[%clk 0:00:43.4]} 32... Ne7 {[%clk 0:00:04.7]} 33. Ne3 {[%clk 0:00:31.8]}
33... h3 {[%clk 0:00:03.2]} 34. Kf1 {[%clk 0:00:32]} 34... Bf4 {[%clk
0:00:03.1]} 35. Kg1 {[%clk 0:00:23.8]} 35... Nc6 {[%clk 0:00:01.9]} 36. Bf5+
{[%clk 0:00:23.5]} 36... Kd8 {[%clk 0:00:02.4]} 37. Bxh3 {[%clk 0:00:24]} 37...
Ne7 {[%clk 0:00:01.4]} 38. Kf1 {[%clk 0:00:23.2]} 38... Kc7 {[%clk 0:00:01.8]}
39. Ke2 {[%clk 0:00:23.4]} 39... Kc6 {[%clk 0:00:01.3]} 40. Kd3 {[%clk
0:00:23.7]} 40... d5 {[%clk 0:00:01.8]} 41. Be6 {[%clk 0:00:18.3]} 41... dxe4+
{[%clk 0:00:02.1]} 42. fxe4 {[%clk 0:00:19.2]} 42... Kc5 {[%clk 0:00:02.3]} 43.
Bb3 {[%clk 0:00:14.6]} 43... Bxe3 {[%clk 0:00:01.8]} 44. Kxe3 {[%clk 0:00:13.9]}
44... Ng6 {[%clk 0:00:02.1]} 45. Bd5 {[%clk 0:00:14]} 45... b6 {[%clk
0:00:01.7]} 46. Bf7 {[%clk 0:00:13.9]} 46... Nf4 {[%clk 0:00:02.1]} 47. a4
{[%clk 0:00:14.3]} 47... Kd6 {[%clk 0:00:02.1]} 48. Kd2 {[%clk 0:00:10.5]} 48...
Kc5 {[%clk 0:00:02.5]} 49. Kc2 {[%clk 0:00:10.8]} 49... Nh3 {[%clk 0:00:02.9]}
50. f3 {[%clk 0:00:10.9]} 50... Nf4 {[%clk 0:00:03.5]} 51. Kb3 {[%clk
0:00:10.3]} 51... Ne2 {[%clk 0:00:03.7]} 52. Kc2 {[%clk 0:00:07.6]} 52... Nf4
{[%clk 0:00:03.9]} 53. Kd2 {[%clk 0:00:08]} 53... Kd6 {[%clk 0:00:03.8]} 54. Ke3
{[%clk 0:00:08.4]} 54... Kc5 {[%clk 0:00:04.2]} 55. Kf2 {[%clk 0:00:08.6]} 55...
Kd6 {[%clk 0:00:04.7]} 56. Bc4 {[%clk 0:00:08.3]} 56... Kc5 {[%clk 0:00:05.1]}
57. Bb5 {[%clk 0:00:08.8]} 57... Kd6 {[%clk 0:00:04.3]} 58. Kg3 {[%clk
0:00:09.3]} 58... Ke6 {[%clk 0:00:04.6]} 59. Kg4 {[%clk 0:00:09.8]} 59... Kf6
{[%clk 0:00:05]} 60. c4 {[%clk 0:00:09.7]} 60... Ne6 {[%clk 0:00:05]} 61. Bd7
{[%clk 0:00:09.2]} 61... Nc5 {[%clk 0:00:04.5]} 62. Bc6 {[%clk 0:00:09.5]} 62...
Ne6 {[%clk 0:00:04.3]} 63. Bd5 {[%clk 0:00:09.7]} 63... Nc5 {[%clk 0:00:04.6]}
64. Bc6 {[%clk 0:00:09.9]} 64... Ne6 {[%clk 0:00:04.8]} 65. Bb5 {[%clk
0:00:10.3]} 65... Nf4 {[%clk 0:00:04.1]} 66. c5 {[%clk 0:00:10.4]} 66... bxc5
{[%clk 0:00:04.3]} 67. a5 {[%clk 0:00:11]} 67... Ne6 {[%clk 0:00:03.5]} 68. a6
{[%clk 0:00:11.5]} 68... Nc7 {[%clk 0:00:04.1]} 69. Bc4 {[%clk 0:00:09.6]} 69...
Ke7 {[%clk 0:00:04.5]} 70. Kf5 {[%clk 0:00:09.5]} 70... Kd6 {[%clk 0:00:05.1]}
71. Kf6 {[%clk 0:00:10]} 71... Ne8+ {[%clk 0:00:04.9]} 72. Kg6 {[%clk
0:00:08.4]} 72... Nc7 {[%clk 0:00:04.9]} 73. Kf5 {[%clk 0:00:08.7]} 73... Na8
{[%clk 0:00:03.3]} 74. a7 {[%clk 0:00:08.9]} 74... Nc7 {[%clk 0:00:03.7]} 75.
Bd5 {[%clk 0:00:08.4]} 1-0

[Event "*** Titled Tuesday Blitz"]
[Site "Chess.com"]
[Date "2021.03.02"]
[Round "9"]
[White "ellennilssen"]
[Black "Pogosian_Manvel"]
[Result "1-0"]
[WhiteElo "2301"]
[BlackElo "2415"]
[TimeControl "180+1"]
[EndTime "11:49:13 PST"]
[Termination "ellennilssen won by resignation"]

1. c4 {[%clk 0:03:00.9]} 1... e5 {[%clk 0:02:56.1]} 2. Nc3 {[%clk 0:03:00]} 2...
Nf6 {[%clk 0:02:55.2]} 3. g3 {[%clk 0:02:59.5]} 3... Nc6 {[%clk 0:02:54.1]} 4.
Bg2 {[%clk 0:02:59.5]} 4... Bc5 {[%clk 0:02:53.7]} 5. e3 {[%clk 0:02:58.5]} 5...
O-O {[%clk 0:02:54.2]} 6. Nge2 {[%clk 0:02:58.5]} 6... a5 {[%clk 0:02:54.5]} 7.
O-O {[%clk 0:02:57.8]} 7... Re8 {[%clk 0:02:55.1]} 8. d4 {[%clk 0:02:56.8]} 8...
exd4 {[%clk 0:02:55.4]} 9. exd4 {[%clk 0:02:56.8]} 9... Ba7 {[%clk 0:02:50.5]}
10. h3 {[%clk 0:02:53.2]} 10... d6 {[%clk 0:02:50.2]} 11. Be3 {[%clk 0:02:52.1]}
11... h6 {[%clk 0:02:50.1]} 12. Qc2 {[%clk 0:02:45.2]} 12... Bd7 {[%clk
0:02:46.4]} 13. Rad1 {[%clk 0:02:43.4]} 13... Qc8 {[%clk 0:02:39.7]} 14. Kh2
{[%clk 0:02:40.6]} 14... Rb8 {[%clk 0:02:35.2]} 15. Nf4 {[%clk 0:02:28.7]} 15...
Bf5 {[%clk 0:02:31.1]} 16. Qc1 {[%clk 0:02:22.7]} 16... Nb4 {[%clk 0:02:09.5]}
17. a3 {[%clk 0:02:18.2]} 17... Nc2 {[%clk 0:02:07.9]} 18. Nfd5 {[%clk
0:02:04.4]} 18... Nxd5 {[%clk 0:02:01.3]} 19. Nxd5 {[%clk 0:02:02.5]} 19... Nxe3
{[%clk 0:01:50.7]} 20. fxe3 {[%clk 0:01:59.2]} 20... c6 {[%clk 0:01:43.2]} 21.
Nf4 {[%clk 0:01:57]} 21... Be4 {[%clk 0:01:39.2]} 22. Qd2 {[%clk 0:01:49.3]}
22... Bxg2 {[%clk 0:01:37]} 23. Nxg2 {[%clk 0:01:50.2]} 23... Re4 {[%clk
0:01:33.1]} 24. Qf2 {[%clk 0:01:47.6]} 24... Qe8 {[%clk 0:01:32.8]} 25. Rde1
{[%clk 0:01:44.3]} 25... b5 {[%clk 0:01:22.3]} 26. cxb5 {[%clk 0:01:38.1]} 26...
Rxb5 {[%clk 0:01:16.6]} 27. Nh4 {[%clk 0:01:38.6]} 27... g6 {[%clk 0:00:59.6]}
28. Nf3 {[%clk 0:01:36.5]} 28... c5 {[%clk 0:00:57.1]} 29. dxc5 {[%clk 0:01:29]}
29... Bxc5 {[%clk 0:00:56.8]} 30. Nd4 {[%clk 0:01:26.8]} 30... Bxd4 {[%clk
0:00:45.3]} 31. exd4 {[%clk 0:01:27.7]} 31... Rxb2 {[%clk 0:00:45.1]} 32. Qxb2
{[%clk 0:01:14]} 32... Rxe1 {[%clk 0:00:44.8]} 33. Rxe1 {[%clk 0:01:14.9]} 33...
Qxe1 {[%clk 0:00:44.8]} 34. Qb8+ {[%clk 0:01:15]} 34... Kg7 {[%clk 0:00:44.1]}
35. Qxd6 {[%clk 0:01:15.3]} 35... Qf2+ {[%clk 0:00:39.9]} 36. Kh1 {[%clk
0:01:14.3]} 36... Qf1+ {[%clk 0:00:28.6]} 37. Kh2 {[%clk 0:01:14.1]} 37... Qf2+
{[%clk 0:00:26.1]} 38. Kh1 {[%clk 0:01:14.6]} 38... Qf1+ {[%clk 0:00:21.6]} 39.
Kh2 {[%clk 0:01:14.8]} 39... a4 {[%clk 0:00:21.7]} 40. Qe5+ {[%clk 0:01:00.2]}
40... Kh7 {[%clk 0:00:21.3]} 41. Qe3 {[%clk 0:00:59.5]} 41... Qd1 {[%clk
0:00:15.9]} 42. Qf4 {[%clk 0:00:54.9]} 42... Kg8 {[%clk 0:00:14.2]} 43. Qb8+
{[%clk 0:00:52.6]} 43... Kh7 {[%clk 0:00:13.3]} 44. Qf4 {[%clk 0:00:47.7]} 44...
Qc2+ {[%clk 0:00:12.2]} 45. Kh1 {[%clk 0:00:46.7]} 45... Qb3 {[%clk 0:00:12.1]}
46. Kg2 {[%clk 0:00:36.7]} 46... h5 {[%clk 0:00:12.3]} 47. Kh1 {[%clk
0:00:33.3]} 47... Kg7 {[%clk 0:00:11.8]} 48. Qe5+ {[%clk 0:00:32.9]} 48... Kh7
{[%clk 0:00:11.8]} 49. Qf4 {[%clk 0:00:32.9]} 49... Kg7 {[%clk 0:00:11.1]} 50.
Qe5+ {[%clk 0:00:33]} 50... f6 {[%clk 0:00:11]} 51. Qe7+ {[%clk 0:00:13.5]}
51... Qf7 {[%clk 0:00:11.4]} 52. Qe4 {[%clk 0:00:08.7]} 52... Qd7 {[%clk
0:00:10.5]} 53. Kh2 {[%clk 0:00:07.7]} 53... Kf7 {[%clk 0:00:10.2]} 54. d5
{[%clk 0:00:07.4]} 54... Qd6 {[%clk 0:00:10.5]} 55. Qxa4 {[%clk 0:00:05.8]}
55... Qxd5 {[%clk 0:00:11]} 56. Qa7+ {[%clk 0:00:05.8]} 56... Ke6 {[%clk
0:00:11.4]} 57. Qb6+ {[%clk 0:00:05.2]} 57... Qd6 {[%clk 0:00:11.2]} 58. Qe3+
{[%clk 0:00:05.2]} 58... Kf7 {[%clk 0:00:11]} 59. Qa7+ {[%clk 0:00:04.6]} 59...
Kg8 {[%clk 0:00:10.6]} 60. Qa8+ {[%clk 0:00:04.5]} 60... Kh7 {[%clk 0:00:11.2]}
61. Qb7+ {[%clk 0:00:04.6]} 61... Kh6 {[%clk 0:00:10.9]} 62. Qb2 {[%clk
0:00:04.5]} 62... h4 {[%clk 0:00:10.5]} 63. Qf2 {[%clk 0:00:03.5]} 63... g5
{[%clk 0:00:09.8]} 64. Kg2 {[%clk 0:00:03.2]} 64... Qd5+ {[%clk 0:00:08.1]} 65.
Kh2 {[%clk 0:00:03.4]} 65... Qd6 {[%clk 0:00:08.1]} 66. Kg2 {[%clk 0:00:03.8]}
66... Kg6 {[%clk 0:00:07.6]} 67. gxh4 {[%clk 0:00:04.1]} 67... Qd5+ {[%clk
0:00:07.4]} 68. Kh2 {[%clk 0:00:04.2]} 68... Qe5+ {[%clk 0:00:07.9]} 69. Kg2
{[%clk 0:00:04.5]} 69... Qe4+ {[%clk 0:00:07.7]} 70. Kh2 {[%clk 0:00:05]} 70...
gxh4 {[%clk 0:00:07.8]} 71. Qg2+ {[%clk 0:00:04.8]} 71... Qxg2+ {[%clk 0:00:08]}
72. Kxg2 {[%clk 0:00:05.7]} 72... Kf5 {[%clk 0:00:08.5]} 73. Kf3 {[%clk
0:00:05.3]} 73... Ke5 {[%clk 0:00:08.5]} 74. a4 {[%clk 0:00:06]} 74... Kd5
{[%clk 0:00:08.7]} 75. Kf4 {[%clk 0:00:06.6]} 75... Kc4 {[%clk 0:00:07.2]} 76.
Kf5 {[%clk 0:00:07.1]} 76... Kb4 {[%clk 0:00:07.9]} 77. Kxf6 {[%clk 0:00:07.9]}
77... Kxa4 {[%clk 0:00:08.8]} 78. Kg5 {[%clk 0:00:08.6]} 78... Kb5 {[%clk
0:00:08.8]} 79. Kxh4 {[%clk 0:00:09.4]} 79... Kc6 {[%clk 0:00:09.6]} 80. Kg5
{[%clk 0:00:10.1]} 80... Kd7 {[%clk 0:00:10.3]} 81. Kg6 {[%clk 0:00:10.7]} 81...
Ke8 {[%clk 0:00:10.7]} 82. Kg7 {[%clk 0:00:11.3]} 82... Ke7 {[%clk 0:00:11.1]}
83. h4 {[%clk 0:00:11.9]} 83... Ke6 {[%clk 0:00:11.8]} 84. h5 {[%clk 0:00:12.2]}
84... Kf5 {[%clk 0:00:12.7]} 85. h6 {[%clk 0:00:13.1]} 85... Kg5 {[%clk
0:00:13.6]} 86. h7 {[%clk 0:00:14]} 86... Kg4 {[%clk 0:00:14.1]} 87. h8=Q {[%clk
0:00:14.9]} 87... Kg3 {[%clk 0:00:14.4]} 1-0